Workbook

Sheet NSU
B1: Marianne Roiha | E1: 28.7.1996 Taipalsaari
B2: SUPERPESIS | E2: Runkosarja | I2: Kärkilyönnit (KL), pesänvälit | Q2: Runkosarja | U2: Ylempi loppusarja | Z2: Alempi loppusarja | AG2: Arvo-ottelut ja mitalit
B3: Vuosi | C3: Sija | D3: Seura | E3: OTT | F3: KUN | G3: LÖI | H3: TOI | I3: KL | J3: 0 > 1 | K3: 1 > 2 | L3: 2 > 3 | M3: 3 > k | N3: KL-% | P3: LÖI | Q3: TOI | R3: L+T | S3: KL | U3: OTT | V3: KUN | W3: LÖI | X3: TOI | Y3: KL | Z3: OTT | AA3: KUN | AB3: LÖI | AC3: TOI | AD3: KL | AE3: IL | AF3: LL | AG3: Halli | AH3: K | AI3: H | AJ3: P
B4: 2012 | D4: Pesä Ysit 2 | F4: suomensarja
B5: 2013 | D5: Pesä Ysit 2 | F5: suomensarja
B6: 2013 | C6: 4. | D6: Pesä Ysit | E6: 16 | F6: 1 | G6: 1 | H6: 9 | I6: 17 | J6: 11 | K6: 2 | L6: 2 | M6: 2 | N6: 44.7 % | O6: =PRODUCT(I6/N6) -> 38.00581265 | U6: 8 | V6: 0 | W6: 0 | X6: 5 | Y6: 9
B7: 2014 | C7: 9. | D7: Pesä Ysit | E7: 24 | F7: 0 | G7: 2 | H7: 2 | I7: 62 | J7: 33 | K7: 18 | L7: 9 | M7: 2 | N7: 41.6 % | O7: =PRODUCT(I7/N7) -> 149.0384615
B8: 2015 | C8: 9. | D8: Pesä Ysit | E8: 24 | F8: 0 | G8: 0 | H8: 9 | I8: 59 | J8: 34 | K8: 19 | L8: 6 | M8: 0 | N8: 40.7 % | O8: 145
B9: 2016 | C9: 8. | D9: Pesä Ysit | E9: 21 | F9: 0 | G9: 3 | H9: 15 | I9: 81 | J9: 30 | K9: 43 | L9: 5 | M9: 3 | N9: 51.9 % | O9: 156 | U9: 3 | V9: 0 | W9: 0 | X9: 0 | Y9: 5 | AE9: 1
B10: 2017 | C10: 9. | D10: Pesä Ysit | E10: 26 | F10: 0 | G10: 6 | H10: 16 | I10: 88 | J10: 19 | K10: 35 | L10: 28 | M10: 6 | N10: 48.4 % | O10: 182
B11: 2018 | C11: 8. | D11: Pesä Ysit | E11: 26 | F11: 0 | G11: 2 | H11: 15 | I11: 97 | J11: 27 | K11: 44 | L11: 24 | M11: 2 | N11: 55.1 % | O11: 176 | U11: 3 | V11: 0 | W11: 0 | X11: 0 | Y11: 13
B12: 2019 | C12: 9. | D12: Pesä Ysit | E12: 24 | F12: 0 | G12: 9 | H12: 19 | I12: 127 | J12: 22 | K12: 61 | L12: 35 | M12: 9 | N12: 62.9 % | O12: 202 | S12: 6. | AE12: 1
B13: 2020 | C13: 9. | D13: JoMa | E13: 20 | F13: 0 | G13: 8 | H13: 11 | I13: 107 | J13: 17 | K13: 40 | L13: 42 | M13: 8 | N13: 62.2 % | O13: 172 | S13: 5.
B14: 2021 | C14: 9. | D14: JoMa | E14: 21 | F14: 1 | G14: 12 | H14: 13 | I14: 96 | J14: 4 | K14: 28 | L14: 51 | M14: 13 | N14: 56.5 % | O14: 170
B15: 2022 | C15: 9. | D15: JoMa | E15: 24 | F15: 1 | G15: 12 | H15: 7 | I15: 73 | J15: 4 | K15: 17 | L15: 39 | M15: 13 | N15: 56.6 % | O15: 129 | AE15: 1
B16: 2023 | C16: 6. | D16: JoMa | E16: 22 | F16: 0 | G16: 7 | H16: 14 | I16: 79 | J16: 5 | K16: 22 | L16: 45 | M16: 7 | N16: 58.5 % | O16: 135 | U16: 5 | V16: 0 | W16: 0 | X16: 4 | Y16: 24
B17: 2024 | C17: 6. | D17: JoMa | E17: 24 | F17: 0 | G17: 4 | H17: 5 | I17: 67 | J17: 2 | K17: 22 | L17: 39 | M17: 4 | N17: 57.8 % | O17: 116 | U17: 4 | V17: 0 | W17: 0 | X17: 1 | Y17: 5
B18: Yhteensä | E18: =SUM(E4:E17) -> 272 | F18: 3 | G18: 66 | H18: 135 | I18: 953 | J18: 208 | K18: 351 | L18: 325 | M18: 69 | N18: =PRODUCT(I18/O18) -> 53.8 % | O18: =SUM(O4:O17) -> 1770.044274 | U18: 23 | V18: 0 | W18: 0 | X18: 10 | Y18: 56 | Z18: 0 | AA18: 0 | AB18: 0 | AC18: 0 | AD18: 0 | AE18: 3 | AF18: 0 | AG18: 0 | AH18: 0 | AI18: 0 | AJ18: 0
B19: Pesispörssi | D19: =SUM(F18:H18)+((I18-F18-G18)/3)+(E18/3)+(AE18*25)+(AF18*25)+(AG18*10)+(AH18*25)+(AI18*20)+(AJ18*15) -> 664.3
B21: URA SUPERISSA | E21: OTT | F21: KUN | G21: LÖI | H21: TOI | I21: KL | K21: ka/L | L21: ka/T | M21: ka/KL | N21: KL-% | P21: ENSIMMÄISET
B22: Runkosarja | E22: =PRODUCT(E18) -> 272 | F22: =PRODUCT(F18) -> 3 | G22: =PRODUCT(G18) -> 66 | H22: =PRODUCT(H18) -> 135 | I22: =PRODUCT(I18) -> 953 | K22: =PRODUCT((F22+G22)/E22) -> 0.25 | L22: =PRODUCT(H22/E22) -> 0.50 | M22: =PRODUCT(I22/E22) -> 3.50 | N22: =PRODUCT(N18) -> 53.8 % | O22: =PRODUCT(O18) -> 1770.044274 | P22: Ottelu | R22: 15.05. 2013 Pesä Ysit - Roihu 2-0 (12-10, 6-2) | AB22: 1. ottelu | AD22: 16 v 9 kk 17 pv
B23: Ylempi loppusarja | E23: =PRODUCT(U18) -> 23 | F23: =PRODUCT(V18) -> 0 | G23: =PRODUCT(W18) -> 0 | H23: =PRODUCT(X18) -> 10 | I23: =PRODUCT(Y18) -> 56 | K23: =PRODUCT((F23+G23)/E23) -> 0.00 | L23: =PRODUCT(H23/E23) -> 0.43 | M23: =PRODUCT(I23/E23) -> 2.43 | N23: =PRODUCT(I23/O23) -> 54.9 % | O23: 102 | P23: Lyöty | R23: 16.07. 2013 Pesä Ysit - ViU 2-0 (3-2, 5-1) | AB23: 9. ottelu | AD23: 16 v 11 kk 18 pv
B24: Alempi loppusarja | P24: Tuotu | R24: 17.05. 2013 Räpsä - Pesä Ysit 0-2 (6-7, 0-10) | AB24: 2. ottelu | AD24: 16 v 9 kk 19 pv
B25: KAIKKI | E25: =SUM(E22:E24) -> 295 | F25: =SUM(F22:F24) -> 3 | G25: =SUM(G22:G24) -> 66 | H25: =SUM(H22:H24) -> 145 | I25: =SUM(I22:I24) -> 1009 | K25: =PRODUCT((F25+G25)/E25) -> 0.23 | L25: =PRODUCT(H25/E25) -> 0.49 | M25: =PRODUCT(I25/E25) -> 3.42 | N25: =PRODUCT(I25/O25) -> 53.9 % | O25: =SUM(O22:O24) -> 1872.044274 | P25: Kunnari | R25: 28.07. 2013 Virkiä - Pesä Ysit 2-0 (11-4, 1-0) | AB25: 12. ottelu | AD25: 17 v 0 kk 0 pv
B27: Kultakypärä 2019
B29: Seurat | D29: Pesä Ysit = Pesä Ysit, Lappeenranta (1976), kasvattajaseura
D30: JoMa = Joensuun Maila (1957)

Sheet Arvo-ottelut
B1: ITÄ - LÄNSI - KORTTI
B2: Marianne Roiha | C2: 28.7.1996 Taipalsaari
B3: NAISET | C3: Itä - Länsi, tulos | D3: Joukkue | E3: Seura | G3: V | H3: T | I3: H | J3: Up. | K3: Lj. | L3: Palk. | M3: O | N3: K | O3: L | P3: T | Q3: KL | R3: 1 | S3: 2 | T3: 3 | U3: k | V3: KL-% | W3: Pelinjohtaja | X3: Yleisöä
B4: 02.07. 2016 Kouvola | C4: 0-2 (2-10, 1-7) | D4: Itä | E4: Pesä Ysit | I4: 1 | K4: jok | L4: II p | M4: 1 | P4: 1 | Q4: 5/6 | R4: 4/5 | S4: 1/1 | V4: 83.3 % | W4: Saku Komulainen | X4: 3267
B5: 06.07. 2019 Seinäjoki | C5: 0-1 (1-2, 4-4) | D5: Itä | E5: Pesä Ysit | I5: 1 | J5: s | K5: 7 | M5: 1 | Q5: 2/5 | R5: 0/2 | S5: 1/2 | T5: 1/1 | V5: 40.0 % | W5: Jussi Viljanen | X5: 3911
B6: 10.07. 2022 Tampere | C6: 0-1 (1-3, 1-1) | D6: Itä | E6: JoMa | I6: 1 | J6: 2v | K6: 4 | M6: 1 | Q6: 1/2 | S6: 0/1 | T6: 1/1 | V6: 50.0 % | W6: Arttu Jurvakainen | X6: 1810
B7: Yhteensä | I7: =SUM(I4:I6) -> 3 | M7: =SUM(M4:M6) -> 3 | P7: =SUM(P4:P6) -> 1 | Q7: 8/13 | R7: 4/7 | S7: 2/4 | T7: 2/2 | V7: 61.5 %
B8: Ikä ensimmäisessä ottelussa | C8: 19 v 11 kk 4 pv
B10: B-TYTÖT | C10: Itä - Länsi, tulos | D10: Joukkue | E10: Seura | G10: V | H10: T | I10: H | J10: Up. | K10: Lj. | L10: Palk. | M10: O | N10: K | O10: L | P10: T | Q10: KL | R10: 1 | S10: 2 | T10: 3 | U10: k | V10: KL-% | W10: Pelinjohtaja | X10: Yleisöä
B11: 19.07. 2014 Seinäjoki | C11: 0-2 (3-11, 2-4) | D11: Itä | E11: Pesä Ysit | I11: 1 | J11: 3v | K11: 7 | L11: I p | M11: 1 | P11: 1 | Q11: 6/9 | R11: 4/6 | S11: 1/2 | T11: 1/1 | V11: 66.7 % | W11: Iivo Parviainen | X11: 1682
B12: 27.06. 2015 Hyvinkää | C12: 2-0 (3-1, 5-4) | D12: Itä | E12: Pesä Ysit | G12: 1 | K12: jok | L12: A | M12: 1 | N12: 2 | P12: 3 | Q12: 9/11 | R12: 3/5 | S12: 2/2 | T12: 2/2 | U12: 2/2 | V12: 81.8 % | W12: Teemu Körkkö | X12: 869
B13: Yhteensä | G13: 1 | I13: 1 | M13: 2 | N13: 2 | P13: 4 | Q13: 15/20 | R13: 7/9 | S13: 3/4 | T13: 3/3 | U13: 2/2 | V13: 75.0 %
